bitfinex/quotes_SOLUSD_20260108
["timestamp","ask_amount","ask_price","bid_price","bid_amount"]
[1767893940303,0.20742078,137.82,137.77,7.92975306]
[1767893940602,0.20742078,137.82,137.78,0.67153517]
[1767893940801,0.20742078,137.82,137.76,7.93027153]
[1767893941300,0.20742078,137.82,137.77,0.67153517]
[1767893942002,0.49174392,137.82,137.76,0.67153517]
[1767893942189,7.46894865,137.8,137.76,0.67153517]
[1767893946792,7.47243939,137.8,137.77,0.67716045]
[1767893947003,7.47243939,137.8,137.76,0.67716045]
[1767893951214,7.92388731,137.81,137.77,0.67716045]
[1767893951516,0.21554535,137.8,137.77,0.67716045]
[1767893952291,7.47247679,137.8,137.77,0.67716045]
[1767893952804,7.25693144,137.8,137.76,0.67716045]
[1767893953013,7.9242088,137.8,137.76,0.67716045]
[1767893953698,7.9242088,137.8,137.76,7.93599173]
[1767893956415,7.9242088,137.8,137.77,0.67716045]
[1767893959314,7.92363433,137.82,137.78,0.67716045]
[1767893959717,0.21554535,137.81,137.78,0.67716045]
[1767893959897,0.21554535,137.81,137.77,7.25845651]
[1767893960098,7.25635697,137.82,137.78,0.67716045]
[1767893960314,7.47190232,137.82,137.78,0.67716045]
[1767893961112,7.47190232,137.82,137.79,0.67716045]
[1767893962018,0.66276004,137.81,137.78,7.2578598]
[1767893962407,0.66727736,137.82,137.79,7.93455147]
[1767893962719,5.55287725,137.82,137.79,7.93455147]
[1767893962943,7.25504946,137.84,137.8,0.67716045]
[1767893962944,0.66727736,137.83,137.8,0.67716045]
[1767893963225,5.55263645,137.83,137.8,0.67716045]
[1767893963406,5.55263645,137.83,137.79,7.93455147]
[1767893964313,12.80802107,137.83,137.79,7.93455147]
[1767893964521,7.92266198,137.83,137.79,7.93455147]
[1767893964709,0.66727736,137.83,137.79,7.93455147]
[1767893965023,5.55268952,137.83,137.79,7.93455147]
[1767893967516,12.80801774,137.83,137.8,0.67716045]
[1767893967819,7.92260558,137.83,137.8,0.67716045]
[1767893968026,0.66276004,137.81,137.76,0.67716045]
[1767893968214,7.47721917,137.8,137.76,0.67716045]
[1767893968419,0.65833261,137.79,137.76,0.67716045]
[1767893969122,7.92447903,137.8,137.76,0.67716045]
[1767893970224,4.88840808,137.79,137.76,0.67716045]
[1767893970527,4.85840808,137.79,137.77,0.67716045]
[1767893970720,7.92447903,137.8,137.77,0.67716045]
[1767893971423,0.21554535,137.82,137.77,0.67716045]
[1767893971628,5.43202782,137.81,137.77,0.67716045]
[1767893971928,0.66727736,137.85,137.78,0.67716045]
[1767893972133,0.66727736,137.9,137.8,0.67716045]
[1767893972428,12.89725786,137.89,137.82,0.6873948]
[1767893972726,5.429555,137.88,137.82,0.6873948]
[1767893972922,0.66276004,137.88,137.82,0.6873948]
[1767893973526,0.2200175,137.86,137.82,0.6873948]
[1767893974504,7.25358117,137.87,137.83,0.6873948]
[1767893974699,7.41695116,137.87,137.83,0.6873948]
[1767893979432,121.05055947,137.91,137.84,0.6873948]
[1767893979807,0.16336999,137.9,137.84,0.6873948]
[1767893980517,0.16336999,137.9,137.85,0.6873948]
[1767893980518,7.4150016,137.9,137.85,0.6873948]
[1767893980725,0.71441365,137.89,137.85,0.6873948]
[1767893982739,7.96666631,137.89,137.85,0.6873948]
[1767893983832,7.96666631,137.89,137.85,7.94163725]
[1767893985155,0.71441365,137.89,137.86,0.6873948]
[1767893985451,7.97183866,137.9,137.86,0.6873948]
[1767893985818,7.25185892,137.9,137.86,0.6873948]
[1767893986020,110.17341452,137.91,137.86,0.6873948]
[1767893986729,102.20209219,137.91,137.86,0.6873948]
[1767893986913,0.1,137.92,137.86,0.6873948]
[1767893987118,0.1,137.92,137.88,0.6873948]
[1767893989141,0.1,137.92,137.89,0.6873948]
[1767893991453,0.1,137.92,137.9,0.6873948]
[1767893993054,0.2,137.93,137.92,0.6873948]
[1767893993240,0.1,137.95,137.93,0.6873948]
[1767893994744,0.2,137.96,137.95,0.6873948]
[1767893995069,0.2,137.96,137.95,0.62739481]
[1767893995240,0.2,137.96,137.92,25.37673433]
[1767893995561,0.2,137.96,137.92,7.25028422]
[1767893995935,0.2,137.96,137.92,25.37673433]
[1767893996855,0.2,137.96,137.93,0.6873948]
[1767893997036,0.2,137.96,137.94,0.6873948]
[1767893997436,0.2,137.96,137.93,7.93721403]
[1767893997661,0.2,137.96,137.94,0.6873948]
[1767893999467,0.2,137.96,137.94,7.93691055]
[1767894000069,0.2,137.96,137.94,0.6873948]
[1767894000271,0.4864873,137.97,137.95,0.6873948]
[1767894001571,0.4864873,137.97,137.96,0.6873948]
[1767894002244,0.4864873,137.97,137.95,0.6873948]
[1767894002444,0.4864873,137.97,137.95,7.93639429]
[1767894002667,0.4864873,137.97,137.96,0.66826102]
[1767894004186,0.1864873,137.98,137.96,0.66826102]
[1767894004357,0.2,138.0,137.98,0.66826102]
[1767894004750,0.88893679,138.0,137.96,0.66826102]
[1767894005057,0.88893679,138.0,137.97,0.66826102]
[1767894005459,8.1354168,138.0,137.97,0.66826102]
[1767894006779,0.2,138.0,137.97,0.66826102]
[1767894007074,0.871073,138.0,137.97,0.66826102]
[1767894007466,8.1175159,138.0,137.97,0.66826102]
[1767894007856,0.671073,137.99,137.96,0.67388628]
[1767894008272,0.2,138.0,137.96,0.67388628]
[1767894008479,0.1,138.01,138.0,0.67388628]
[1767894008658,0.1,138.01,137.99,0.67388628]
[1767894008862,0.1,138.01,137.98,0.67388628]
[1767894009574,0.771073,138.01,137.98,0.67388628]
[1767894010154,0.771073,138.01,137.95,7.92258949]
[1767894010370,0.771073,138.01,137.96,7.92231495]
[1767894011079,7.24637681,138.0,137.96,7.92231495]
[1767894012658,7.24637681,138.0,137.97,0.67388628]
[1767894013694,0.671073,137.99,137.96,0.67388628]
[1767894014678,0.1,138.01,137.97,0.67388628]
[1767894014861,0.1,138.01,137.98,0.67388628]
[1767894016282,0.1,138.01,137.98,7.92123832]
[1767894017686,0.1,138.01,137.99,0.67388628]
[1767894017978,0.1,138.01,137.99,0.6138863]
[1767894020579,0.1,138.01,137.99,7.86077027]
[1767894020778,7.24445559,138.04,138.01,0.67388628]
[1767894020970,0.671073,138.04,138.01,0.67388628]
[1767894021168,7.91536485,138.04,138.01,0.67388628]
[1767894022882,0.671073,138.03,137.99,7.92052351]
[1767894023789,0.671073,138.03,138.0,0.67388628]
[1767894024362,7.24429185,138.04,138.01,0.67388628]
[1767894024768,0.671073,138.03,138.0,0.67388628]
[1767894026498,7.91506944,138.05,138.01,0.67388628]
[1767894026992,0.671073,138.04,137.99,7.92058533]
[1767894027283,0.671073,138.04,138.0,0.67388628]
[1767894027473,0.671073,138.04,138.01,0.67388628]
[1767894027673,0.671073,138.04,138.0,7.92024274]
[1767894027971,0.671073,138.04,138.01,0.67388628]
[1767894028282,0.671073,138.04,138.0,0.67388628]
[1767894028589,7.91552902,138.04,138.0,0.67388628]
[1767894029165,13.65728114,138.06,138.01,0.67388628]
[1767894029364,0.671073,138.05,138.01,0.67388628]
[1767894030490,7.91496018,138.05,138.01,0.67388628]
[1767894031289,13.65728114,138.06,138.03,0.67388628]
[1767894033504,0.66298575,138.05,138.02,7.24500984]
[1767894034181,13.65728114,138.06,138.03,7.95802662]
[1767894034381,0.66298575,138.05,138.02,7.24509855]
[1767894034804,13.65728114,138.06,138.03,0.71329149]
[1767894034989,0.66298575,138.13,138.04,13.40351279]
[1767894035176,0.66298575,138.11,138.04,13.40351279]
[1767894036279,0.66298575,138.1,138.05,7.24375226]
[1767894038600,0.66298575,138.09,138.03,7.24449722]
[1767894038810,0.66298575,138.09,138.02,7.24523082]
[1767894039520,0.66298575,138.08,137.98,18.11799942]
[1767894039685,0.66298575,138.08,138.0,7.2460804]
[1767894040019,0.66298575,138.05,137.99,7.24690194]
[1767894040195,0.66298575,138.05,137.98,7.24729727]
[1767894041529,0.66298575,138.03,137.98,7.24729727]
[1767894041703,0.66298575,138.03,137.96,7.24817204]
[1767894042401,0.66298575,138.03,137.95,18.12179634]
[1767894042606,0.66298575,138.03,137.97,7.24772378]
[1767894042830,0.66298575,138.03,137.96,7.24825213]
[1767894043529,0.66298575,138.01,137.95,25.3707996]
[1767894045015,0.66298575,138.0,137.95,25.3707996]
[1767894045217,0.63298575,138.0,137.96,0.03]
[1767894046834,0.60298573,138.0,137.96,0.03]
[1767894047036,7.24658048,138.0,137.94,20.52931052]
[1767894047832,7.24658048,138.0,137.95,0.06000002]
[1767894048038,18.11520561,138.01,137.95,0.06000002]
[1767894048815,0.66298575,138.0,137.95,0.06000002]
[1767894049218,0.66298575,138.0,137.93,7.30983139]
[1767894050042,0.66298575,137.98,137.93,0.06000002]
[1767894050230,0.66298575,137.98,137.92,7.31058006]
[1767894051154,7.91046945,137.98,137.93,0.06000002]
[1767894051835,0.66298575,137.97,137.93,0.06000002]
[1767894054452,0.66298575,137.96,137.92,7.31058006]
[1767894054635,0.66298575,137.96,137.92,7.25058004]
[1767894055153,0.66298575,137.96,137.92,7.31058006]
[1767894057945,7.24873352,137.96,137.92,0.06000002]
[1767894058147,7.9110998,137.97,137.92,0.06000002]
[1767894058763,0.66298575,137.96,137.92,0.06000002]
[1767894059632,0.66298575,138.02,137.93,0.06000002]
[1767894059836,0.66298575,138.02,137.95,0.06000002]
[1767894059837,0.66298575,138.0,137.95,0.06000002]
[1767894060565,7.90944283,138.0,137.95,0.06000002]
[1767894060765,0.66298575,137.99,137.95,0.06000002]
[1767894062439,7.90991596,137.99,137.95,0.06000002]
[1767894062959,0.66298575,137.99,137.95,0.06000002]
[1767894063138,0.71114358,138.01,137.95,0.06000002]
[1767894063334,0.71114358,137.99,137.94,0.70553771]
[1767894063558,0.71114358,138.01,137.94,0.70553771]
[1767894064146,0.71114358,138.01,137.96,0.70553771]
[1767894065436,0.71114358,138.01,137.96,7.95376336]
[1767894065437,7.95703748,138.01,137.96,7.95376336]
[1767894065639,0.69104775,138.0,137.96,7.95376336]
[1767894066067,0.69104775,138.0,137.97,0.70311821]
[1767894067372,0.69104775,138.0,137.97,7.95100777]
[1767894067552,0.69104775,138.01,137.97,7.95100777]
[1767894068757,0.69104775,138.06,137.99,0.70311821]
[1767894069159,0.69104775,138.08,138.01,0.70311821]
[1767894069359,7.93375072,138.07,138.02,7.94844497]
[1767894069570,0.69104775,138.07,138.03,0.70311821]
[1767894070274,0.69104775,138.08,138.03,0.70311821]
[1767894071274,0.69104775,138.1,138.03,0.70311821]
[1767894071467,0.69104775,138.1,138.06,0.70311821]
[1767894071662,0.69104775,138.1,138.05,7.24375226]
[1767894071973,0.69104775,138.1,138.05,25.35313291]
[1767894072643,0.69104775,138.12,138.05,25.35313291]
[1767894073480,7.93135306,138.12,138.05,25.35313291]
[1767894073649,0.69104775,138.11,138.06,0.70311821]
[1767894073849,0.69104775,138.11,138.05,25.35313291]
[1767894073850,0.69104775,138.11,138.05,7.24375226]
[1767894074549,0.69104775,138.11,138.05,7.94687047]
[1767894075157,0.69104775,138.1,138.04,0.70311821]
[1767894075485,0.69104775,138.09,138.03,0.70311821]
[1767894075673,0.69104775,138.09,138.02,0.70311821]
[1767894075848,0.69104775,138.08,138.0,0.70311821]
[1767894076054,0.69104775,138.08,138.01,7.94856957]
[1767894077584,0.69104775,138.06,138.01,7.94856957]
[1767894078391,0.69104775,138.06,138.02,0.70311821]
[1767894078985,7.93428226,138.06,138.02,0.70311821]
[1767894079489,0.69104775,138.06,138.02,7.94841706]
[1767894079795,0.69104775,138.06,138.02,0.70311821]
[1767894083176,0.69104775,138.06,138.02,7.94818067]
[1767894083377,13.22,138.09,138.03,0.70311821]
[1767894083572,28.40725435,138.11,138.05,0.70311821]
[1767894084585,7.24112961,138.1,138.05,0.70311821]
[1767894085475,0.69104775,138.09,138.05,0.70311821]
[1767894085686,0.69104775,138.08,138.04,0.70311821]
[1767894085900,0.69104775,138.08,138.03,0.70311821]
[1767894086183,0.69104775,138.08,138.01,0.70311821]
[1767894086562,0.69104775,138.06,138.01,0.70311821]
[1767894087365,7.24375226,138.05,138.01,0.70311821]
[1767894087560,7.93442941,138.06,138.01,7.94894264]
[1767894089261,7.93487644,138.05,138.01,0.70311821]
[1767894089686,0.69104775,138.05,138.01,7.94894567]
[1767894089874,21.15386112,138.07,138.02,0.70311821]
[1767894090379,2.84269601,138.06,138.02,0.70311821]
[1767894090784,0.69104775,138.05,138.02,0.70311821]
[1767894091883,2.84269601,138.05,138.02,0.70311821]
[1767894092387,2.15164826,138.04,138.02,0.70311821]
[1767894093786,7.93481329,138.05,138.02,0.70311821]
[1767894093787,0.69104775,138.05,138.02,0.70311821]
[1767894095666,2.84269601,138.05,138.01,10.06131127]
[1767894096588,0.69104775,138.05,138.01,10.06131127]
[1767894096795,2.84269601,138.05,138.01,7.90966301]
[1767894097472,10.08645352,138.05,138.01,0.66399295]
[1767894097787,0.66797731,138.03,137.99,0.66399295]
[1767894097995,2.81962557,138.03,137.99,0.66399295]
[1767894098189,0.66797731,138.02,137.99,7.91067289]
[1767894099484,2.81962557,138.02,137.99,0.66399295]
[1767894099890,2.81962557,138.01,137.97,0.66399295]
[1767894100067,2.81962557,138.01,137.97,7.91183902]
[1767894100266,0.66797731,138.02,137.98,7.91126668]
[1767894100588,2.15164826,138.01,137.98,7.91126668]
[1767894100772,2.15164826,138.01,137.98,0.66399295]
[1767894101187,2.81962557,138.01,137.98,0.66399295]
[1767894101490,0.66797731,137.99,137.96,0.66399295]
[1767894101795,2.15164826,137.99,137.95,0.66399295]
[1767894101983,2.15164826,137.98,137.94,7.91346984]
[1767894102184,2.15164826,137.98,137.94,0.66399295]
[1767894102389,2.15164826,137.98,137.94,7.9134289]
[1767894102691,2.12164827,137.98,137.94,0.66399295]
[1767894103596,2.78962558,137.98,137.94,0.66399295]
[1767894104095,0.66797731,137.98,137.94,0.66399295]
[1767894104279,2.81962557,137.98,137.95,0.66399295]
[1767894104986,0.66797731,137.98,137.95,0.66399295]
[1767894105187,2.15164826,137.98,137.95,0.66399295]
[1767894105492,10.06695585,137.99,137.95,0.66399295]
[1767894105796,0.66797731,137.98,137.95,0.66399295]
[1767894107484,23.28624908,138.0,137.96,0.66399295]
[1767894107682,0.66797731,137.99,137.96,0.66399295]
[1767894108000,0.66797731,137.98,137.95,7.91294127]
[1767894109388,0.66797731,137.99,137.95,10.06458953]
[1767894110497,13.88797731,138.01,137.98,2.81564121]
[1767894110701,0.66797731,138.01,137.98,2.81564121]
[1767894110903,0.66797731,138.01,137.98,2.15164826]
[1767894111199,0.66797731,138.03,138.0,2.15164826]
[1767894111390,10.06408869,138.04,138.0,2.81564121]
[1767894111589,0.66797731,138.03,137.99,2.15164826]
[1767894111782,0.66797731,138.02,137.97,0.66399295]
[1767894111984,0.66797731,138.02,137.98,2.15164826]
[1767894112178,7.24446312,138.04,137.96,10.0639996]
[1767894112179,0.66797731,138.0,137.96,10.0639996]
[1767894113395,0.66797731,138.02,137.98,2.81564121]
[1767894113594,2.81962557,138.02,137.98,0.66399295]
[1767894114302,10.06413664,138.04,137.99,2.81564121]
[1767894114506,2.81962557,138.03,137.99,7.24661339]
[1767894114804,0.66797731,138.03,138.0,7.24635694]
[1767894114986,10.06361685,138.05,138.0,10.06199815]
[1767894115177,7.91196859,138.05,138.0,10.06199815]
[1767894115381,10.06361685,138.05,138.0,10.06199815]
[1767894115581,0.66797731,138.04,138.0,10.06199815]
[1767894115998,0.66797731,138.02,137.99,10.06234496]
[1767894116200,0.66797731,138.03,137.99,10.06234496]
[1767894116500,2.81962557,138.04,138.0,2.81564121]
[1767894116804,10.06399434,138.04,138.0,0.66399295]
[1767894117101,0.66797731,138.03,138.0,0.66399295]
[1767894117785,0.66797731,138.03,138.0,7.91018033]
[1767894118399,2.15164826,138.04,138.0,7.91018033]
[1767894119303,2.15164826,138.04,137.99,7.91078986]
[1767894119304,2.15164826,138.03,137.99,7.91078986]
[1767894119603,2.15164826,138.03,137.98,18.11795132]
[1767894119604,2.15164826,138.02,137.98,0.66399295]
[1767894119991,2.15164826,138.02,137.98,7.91138843]
[1767894120610,7.9132219,138.03,137.99,0.66399295]
[1767894120795,10.06487016,138.03,137.99,0.66399295]
[1767894121604,9.39689285,138.03,137.99,0.66399295]
[1767894122085,2.15164826,138.02,137.99,0.66399295]
[1767894123209,7.90788967,138.03,137.99,0.66399295]
[1767894123411,2.15164826,138.05,138.01,0.68305007]
[1767894123608,0.14114062,138.04,138.01,0.68305007]
[1767894123790,2.81848463,138.05,138.01,0.68305007]
[1767894124111,2.81848463,138.05,138.01,2.83469833]
[1767894124508,10.06247038,138.05,138.01,2.83469833]
[1767894124690,2.81848463,138.08,138.04,2.83469833]
[1767894124890,0.66683637,138.08,138.04,2.83469833]
[1767894125308,2.81848463,138.08,138.04,2.83469833]
[1767894125813,10.06066307,138.08,138.04,2.83469833]
[1767894126013,10.06066307,138.08,138.04,0.68305007]
[1767894126308,7.24217844,138.08,138.05,0.68305007]
[1767894126495,2.28753246,138.09,138.05,0.68305007]
[1767894126810,0.66152685,138.08,138.04,2.83469833]
[1767894127011,2.81317511,138.08,138.04,0.68305007]
[1767894127514,9.3929926,138.1,138.06,0.68305007]
[1767894127993,10.05451945,138.1,138.06,0.68305007]
[1767894128192,2.29278888,138.09,138.05,0.68305007]
[1767894128393,0.14114062,138.09,138.05,0.68305007]
[1767894128612,2.29278888,138.09,138.05,0.68305007]
[1767894129298,7.15610864,138.09,138.05,0.68305007]
[1767894129499,2.29278888,138.09,138.05,0.68305007]
[1767894130010,9.53448276,138.09,138.05,0.68305007]
[1767894131909,0.15134174,138.05,138.02,0.68305007]
[1767894132210,2.30299,138.05,138.02,0.68305007]
[1767894132606,31.3260993,138.08,138.0,7.92925674]
[1767894132607,2.15164826,138.03,138.0,7.92925674]
[1767894133209,2.15164826,138.02,138.0,7.92925674]
[1767894133812,2.15164826,138.03,138.0,7.92925674]
[1767894134316,2.15164826,138.04,138.01,0.68305007]
[1767894134523,2.15164826,138.03,138.01,0.68305007]
[1767894137529,7.37969573,138.05,138.01,0.68305007]
[1767894137712,2.15164826,138.03,138.01,0.68305007]
[1767894138929,2.15164826,138.02,137.99,0.68305007]
[1767894139118,2.15164826,138.01,137.99,0.68305007]
[1767894139628,2.15164826,138.02,137.99,7.92987551]
[1767894140031,2.15164826,138.02,138.0,0.68305007]
[1767894140624,0.14114062,138.03,138.0,0.68305007]
[1767894140832,2.15164826,138.02,138.0,0.68305007]
[1767894141023,2.15164826,138.01,138.0,0.68305007]
[1767894141220,2.15164826,138.01,137.96,33.77643247]
[1767894141221,2.15164826,138.01,137.98,7.24714625]
[1767894141414,2.84666881,138.02,137.98,7.24714625]
[1767894142112,2.15164826,138.02,137.98,7.24714625]
[1767894142506,3.36419065,138.02,137.97,10.6121431]
[1767894142710,3.36419065,138.02,137.97,28.73202423]
[1767894143433,3.36419065,138.02,137.98,0.69914782]
[1767894143931,3.36419065,138.02,137.99,0.69914782]
[1767894144329,4.0592112,138.02,137.99,0.69914782]
[1767894145028,3.36419065,138.02,137.99,0.69914782]
[1767894146228,3.36419065,138.0,137.98,0.69914782]
[1767894146528,0.69502055,137.98,137.94,0.69914782]
[1767894146728,0.69502055,137.97,137.94,0.69914782]
[1767894146933,4.0592112,137.97,137.94,0.69914782]
[1767894148617,4.0592112,137.96,137.93,0.69914782]
[1767894149132,4.0292112,137.96,137.93,0.69914782]
[1767894150224,3.99921118,137.96,137.93,0.69914782]
[1767894150837,0.69502055,137.96,137.93,7.94912999]
[1767894151041,11.30733194,137.97,137.93,0.69914782]
[1767894151231,4.0592112,137.97,137.93,7.94914155]
[1767894151427,11.30729056,137.97,137.93,0.69914782]
[1767894152829,3.36419065,137.96,137.93,0.69914782]
[1767894153921,3.36419065,137.95,137.93,0.69914782]
[1767894154238,3.33419065,137.95,137.93,0.69914782]
[1767894154920,3.33419065,137.95,137.92,0.67673681]
[1767894155126,4.00248545,137.95,137.92,0.67673681]
[1767894155332,4.00248545,137.95,137.91,7.92766654]
[1767894156441,4.00248545,137.95,137.92,7.92719412]
[1767894156754,3.33419065,137.95,137.92,7.92719412]
[1767894156919,3.33419065,137.95,137.92,0.67673681]
[1767894157120,4.00248545,137.95,137.92,0.67673681]
[1767894157329,3.33419065,137.95,137.92,0.67673681]
[1767894157529,11.25156434,137.95,137.92,0.67673681]
[1767894157742,3.97248545,137.95,137.92,0.67673681]
[1767894157946,4.03248545,137.95,137.92,0.67673681]
[1767894158123,3.36419065,137.95,137.92,0.67673681]
[1767894158446,3.36419065,137.94,137.92,0.67673681]
[1767894158738,4.03248545,137.95,137.92,7.92726092]
[1767894160340,11.28164788,137.95,137.92,0.67673681]
[1767894160742,4.03248545,137.95,137.92,0.67673681]
[1767894161324,11.28152724,137.95,137.92,0.67673681]
[1767894162244,7.91733659,137.95,137.92,0.67673681]
[1767894162434,4.03248545,137.95,137.92,0.67673681]
[1767894163631,0.6682948,137.94,137.91,0.67673681]
[1767894163927,4.03248545,137.93,137.89,0.67673681]
[1767894164128,4.03248545,137.93,137.89,7.92885898]
[1767894164330,4.03248545,137.92,137.89,0.67673681]
[1767894164529,3.36419065,137.91,137.88,0.67673681]
[1767894165130,4.03248545,137.92,137.88,7.92911661]
[1767894165337,3.36419065,137.92,137.89,7.92875641]
[1767894165530,4.03248545,137.92,137.89,7.92875641]
[1767894165741,4.03248545,137.92,137.89,0.67673681]
[1767894167129,4.03248545,137.93,137.9,0.67673681]
[1767894167334,4.03248545,137.92,137.89,0.67673681]
[1767894167533,3.36419065,137.91,137.88,7.9293965]
[1767894168250,4.03248545,137.92,137.88,7.9293965]
[1767894168448,11.28314738,137.92,137.88,7.9293965]
[1767894168651,0.6682948,137.92,137.88,11.29358715]
[1767894168846,4.03248545,137.92,137.88,7.9293965]
[1767894169043,11.28317561,137.92,137.88,7.9293965]
[1767894169245,0.6682948,137.91,137.88,7.9293965]
[1767894170762,11.28274101,137.93,137.89,0.67673681]
[1767894171451,7.91855036,137.93,137.89,4.04092746]
[1767894172360,7.91855036,137.93,137.89,11.29300996]
[1767894174060,0.6682948,137.93,137.89,10.61627315]
[1767894174269,0.6682948,137.93,137.9,0.67673681]
[1767894174859,0.6682948,137.95,137.91,4.04092746]
[1767894175849,0.6682948,137.95,137.91,11.29196597]
[1767894176053,7.9173506,137.95,137.91,11.29196597]
[1767894177752,24.52079115,137.97,137.93,0.67673681]
[1767894177951,7.91637856,137.97,137.94,0.67673681]
[1767894178270,11.28056921,137.97,137.93,0.67673681]
[1767894178661,0.6682948,137.96,137.93,0.67673681]
[1767894180461,11.2811189,137.96,137.93,0.67673681]
[1767894180665,4.03248545,137.96,137.93,0.67673681]
[1767894180968,0.6682948,137.96,137.93,0.67673681]
[1767894181173,7.91642903,137.97,137.93,11.29090598]
[1767894181360,0.6682948,137.96,137.93,0.67673681]
[1767894181760,0.6682948,137.97,137.94,0.67673681]
[1767894181965,0.6682948,137.97,137.94,4.04092746]
[1767894182150,11.27892538,138.0,137.96,0.67673681]
[1767894182349,0.65297573,137.99,137.96,0.67673681]
[1767894182550,0.65297573,138.0,137.96,4.04092746]
[1767894182962,4.01716638,138.0,137.96,0.67673681]
[1767894183172,11.26358041,138.0,137.96,0.67673681]
[1767894183472,7.89938976,138.0,137.96,4.04092746]
[1767894183674,11.26358041,138.0,137.96,0.67673681]
[1767894184069,7.89938976,138.0,137.96,4.04092746]
[1767894184278,0.65297573,138.0,137.97,0.69160416]
[1767894185176,0.65297573,138.0,137.96,11.29818373]
[1767894185772,0.66321031,137.99,137.96,10.61231365]
[1767894185955,0.66321031,137.99,137.96,3.36419065]
[1767894186568,0.66321031,137.99,137.96,4.05006073]
[1767894187456,0.66321031,137.99,137.96,11.29851184]
[1767894187862,0.66321031,138.0,137.96,11.29851184]
[1767894188477,0.66321031,138.0,137.97,0.68587008]
[1767894189352,11.27393794,138.0,137.96,4.05006073]
[1767894189978,7.90888111,138.02,137.98,0.68587008]
[1767894190163,7.2456708,138.02,137.99,0.68587008]
[1767894190358,7.90888111,138.02,137.99,0.68587008]
[1767894191080,0.66321031,138.02,137.98,4.05006073]
[1767894191758,0.66321031,138.02,137.98,11.29726855]
[1767894194289,0.66321031,138.01,137.98,7.9330779]
[1767894198078,0.66321031,138.02,137.98,7.9330779]
[1767894198277,20.48502147,138.03,137.95,13.24]
[1767894198278,0.66321031,137.98,137.95,7.24873156]
[1767894198982,0.66321031,137.98,137.96,7.24843813]
[1767894199692,0.66321031,137.99,137.96,7.93430821]
[1767894199871,0.66321031,137.99,137.96,7.24843813]
[1767894203695,0.66321031,137.98,137.95,7.93462017]
[1767894203990,0.66321031,137.98,137.94,7.24928885]
[1767894204192,0.66321031,137.96,137.94,7.24928885]
[1767894204396,3.36419065,137.97,137.94,7.24928885]
[1767894204584,2.15450908,137.97,137.94,7.24928885]
[1767894205297,2.15450908,137.98,137.94,7.93515893]
[1767894206286,0.66321031,137.97,137.94,7.93515893]
[1767894206788,2.15450908,137.98,137.94,7.93515893]
[1767894207099,2.31362444,137.98,137.94,7.93515893]
[1767894207683,2.31861498,137.96,137.93,7.93592397]
[1767894208086,2.15450908,137.96,137.93,7.93592397]
[1767894208800,10.06568256,137.97,137.93,7.93592397]
[1767894209179,2.31362444,137.96,137.93,0.68587008]
[1767894209898,2.15450908,137.94,137.92,0.68587008]
[1767894210268,0.65816936,137.95,137.92,0.68587008]
[1767894210269,2.81267844,137.95,137.92,0.68587008]
[1767894211397,0.65816936,137.95,137.92,0.68587008]
[1767894211598,2.81267844,137.95,137.92,0.68587008]
[1767894212395,2.82701757,137.96,137.92,7.93631695]
[1767894212897,10.07557692,137.96,137.92,7.93631695]
[1767894213075,0.67250849,137.96,137.93,0.6528932]
[1767894213282,7.92070482,137.97,137.93,0.6528932]
[1767894213482,10.0752139,137.97,137.93,0.6528932]
[1767894214302,7.24769054,137.98,137.95,0.6528932]
[1767894215385,2.82179159,137.98,137.92,0.6528932]
[1767894215598,2.15450908,137.95,137.92,0.6528932]
[1767894216106,2.15450908,137.94,137.9,0.6528932]
[1767894216276,2.80672938,137.92,137.88,0.6528932]
[1767894216601,2.15450908,137.89,137.87,0.2]
[1767894216784,2.15450908,137.88,137.87,0.2]
[1767894216982,2.15450908,137.88,137.85,0.6528932]
[1767894218602,2.28018699,137.87,137.83,0.6528932]
[1767894219778,10.07938976,137.89,137.85,0.6528932]
[1767894220190,2.15450908,137.88,137.85,0.6528932]
[1767894221007,20.49173411,137.9,137.86,0.6528932]
[1767894221208,22.76645335,137.9,137.86,0.6528932]
[1767894221388,9.52645335,137.9,137.86,0.6528932]
[1767894222107,7.37194427,137.9,137.86,0.6528932]
[1767894222906,2.15450908,137.89,137.86,0.6528932]
[1767894224600,2.27471924,137.92,137.88,0.6528932]
[1767894225103,2.15450908,137.91,137.88,0.6528932]
[1767894226210,2.15450908,137.91,137.86,9.40822351]
[1767894226211,0.12567791,137.9,137.86,7.90660763]
[1767894226389,0.12567791,137.9,137.86,10.06111671]
[1767894226590,0.12567791,137.9,137.87,0.6528932]
[1767894227416,2.82701757,137.91,137.87,0.6528932]
[1767894227792,10.07815264,137.91,137.87,0.6528932]
[1767894228409,7.92364356,137.91,137.87,0.6528932]
[1767894228604,10.07815264,137.91,137.87,0.6528932]
[1767894229197,2.27471924,137.9,137.86,0.6528932]
[1767894229410,2.27471924,137.9,137.86,2.80740228]
[1767894229819,2.27471924,137.9,137.86,10.06113473]
[1767894229989,2.27471924,137.9,137.86,2.80740228]
[1767894230616,2.27471924,137.9,137.87,0.6528932]
[1767894230993,9.52636312,137.9,137.87,0.6528932]
[1767894231520,9.40615296,137.9,137.87,0.6528932]
[1767894231711,9.40615296,137.9,137.86,0.6528932]